[Event "Titled Tuesday Blitz October 31 Late 2023"]
[White "Pein, Jonathan"]
[Black "Burke, Paul"]
[WhiteFideId "417092"]
[BlackFideId "2605767"]
[WhiteElo "2293"]
[BlackElo "1886"]
[Result "1-0"]
[Round "8"]
[TimeControl "180+1"]
[Date "2023.10.31"]
[WhiteClock "0:00:11"]
[BlackClock "0:00:00"]
[Board "128"]

1. c4 {[%clk 0:02:55]}  a6 {[%clk 0:02:59]} 2. Nc3 {[%clk 0:02:52]}  d6 {[%clk 0:02:59]} 3. d4 {[%clk 0:02:52]}  g6 {[%clk 0:02:59]} 4. g3 {[%clk 0:02:52]}  h6 {[%clk 0:02:59]} 5. Bg2 {[%clk 0:02:53]}  Bg7 {[%clk 0:02:59]} 6. Nf3 {[%clk 0:02:54]}  Nd7 {[%clk 0:03:00]} 7. O-O {[%clk 0:02:54]}  e6 {[%clk 0:02:59]} 8. e4 {[%clk 0:02:54]}  Ne7 {[%clk 0:03:00]} 9. Be3 {[%clk 0:02:52]}  O-O {[%clk 0:02:59]} 10. Qd2 {[%clk 0:02:47]}  Kh7 {[%clk 0:03:00]} 11. h4 {[%clk 0:02:36]}  Nf6 {[%clk 0:02:59]} 12. Rad1 {[%clk 0:02:31]}  Ng4 {[%clk 0:02:58]} 13. Bf4 {[%clk 0:02:30]}  Qe8 {[%clk 0:02:43]} 14. Nh2 {[%clk 0:02:20]}  Nxh2 {[%clk 0:02:38]} 15. Kxh2 {[%clk 0:02:21]}  e5 {[%clk 0:02:36]} 16. dxe5 {[%clk 0:01:57]}  dxe5 {[%clk 0:02:33]} 17. Be3 {[%clk 0:01:57]}  f5 {[%clk 0:02:27]} 18. f3 {[%clk 0:01:46]}  f4 {[%clk 0:01:57]} 19. gxf4 {[%clk 0:01:42]}  exf4 {[%clk 0:01:56]} 20. Bxf4 {[%clk 0:01:42]}  Qf7 {[%clk 0:01:56]} 21. Bxc7 {[%clk 0:01:36]}  Qxc4 {[%clk 0:01:52]} 22. Bg3 {[%clk 0:01:35]}  Be6 {[%clk 0:01:37]} 23. Nd5 {[%clk 0:01:10]}  Bxd5 {[%clk 0:01:01]} 24. exd5 {[%clk 0:01:11]}  Nf5 {[%clk 0:01:00]} 25. b3 {[%clk 0:01:02]}  Qc5 {[%clk 0:00:55]} 26. Bf2 {[%clk 0:00:54]}  Qd6+ {[%clk 0:00:52]} 27. Kg1 {[%clk 0:00:54]}  Ng3 {[%clk 0:00:48]} 28. Rfe1 {[%clk 0:00:53]}  Rae8 {[%clk 0:00:41]} 29. b4 {[%clk 0:00:44]}  Be5 {[%clk 0:00:33]} 30. Bc5 {[%clk 0:00:40]}  Qf6 {[%clk 0:00:29]} 31. Bxf8 {[%clk 0:00:38]}  Rxf8 {[%clk 0:00:27]} 32. d6 {[%clk 0:00:25]}  Nf5 {[%clk 0:00:14]} 33. Rxe5 {[%clk 0:00:17]}  Qxe5 {[%clk 0:00:12]} 34. d7 {[%clk 0:00:16]}  Rd8 {[%clk 0:00:12]} 35. Re1 {[%clk 0:00:15]}  Qg3 {[%clk 0:00:05]} 36. Re8 {[%clk 0:00:12]}  Nxh4 {[%clk 0:00:00]} 37. Re7+ {[%clk 0:00:11]} 1-0


[Site "https://www.chess.com"]

[Event "Titled Tuesday Blitz October 31 Late 2023"]
[White "Adel, Sara"]
[Black "Sokolov, Andrei"]
[WhiteFideId "10616764"]
[BlackFideId "11600306"]
[WhiteElo "2163"]
[BlackElo "2234"]
[Result "1-0"]
[Round "8"]
[TimeControl "180+1"]
[Date "2023.10.31"]
[WhiteClock "0:00:53"]
[BlackClock "0:00:19"]
[Board "131"]

1. e4 {[%clk 0:02:57]}  c6 {[%clk 0:02:59]} 2. d4 {[%clk 0:02:57]}  d5 {[%clk 0:03:00]} 3. Nc3 {[%clk 0:02:57]}  dxe4 {[%clk 0:03:00]} 4. Nxe4 {[%clk 0:02:58]}  Nf6 {[%clk 0:03:00]} 5. Nxf6+ {[%clk 0:02:58]}  exf6 {[%clk 0:03:01]} 6. Nf3 {[%clk 0:02:59]}  Bd6 {[%clk 0:03:01]} 7. Bc4 {[%clk 0:02:59]}  O-O {[%clk 0:03:01]} 8. O-O {[%clk 0:02:59]}  Bf5 {[%clk 0:03:00]} 9. c3 {[%clk 0:03:00]}  Nd7 {[%clk 0:02:59]} 10. Bd3 {[%clk 0:03:00]}  Bxd3 {[%clk 0:02:58]} 11. Qxd3 {[%clk 0:03:00]}  Nb6 {[%clk 0:02:58]} 12. Be3 {[%clk 0:03:00]}  Nd5 {[%clk 0:02:58]} 13. Rae1 {[%clk 0:03:00]}  Qc7 {[%clk 0:02:57]} 14. a3 {[%clk 0:02:55]}  Nf4 {[%clk 0:02:54]} 15. Bxf4 {[%clk 0:02:55]}  Bxf4 {[%clk 0:02:54]} 16. Re4 {[%clk 0:02:55]}  Rfe8 {[%clk 0:02:51]} 17. Rfe1 {[%clk 0:02:55]}  Rxe4 {[%clk 0:02:50]} 18. Rxe4 {[%clk 0:02:54]}  Kf8 {[%clk 0:02:37]} 19. g3 {[%clk 0:02:34]}  Bd6 {[%clk 0:02:33]} 20. Rh4 {[%clk 0:02:34]}  g6 {[%clk 0:01:59]} 21. Rxh7 {[%clk 0:02:32]}  Kg8 {[%clk 0:01:59]} 22. Rh4 {[%clk 0:02:30]}  Re8 {[%clk 0:01:52]} 23. Nd2 {[%clk 0:02:17]}  Re1+ {[%clk 0:01:41]} 24. Kg2 {[%clk 0:02:17]}  f5 {[%clk 0:01:42]} 25. Nf3 {[%clk 0:02:08]}  Re8 {[%clk 0:01:37]} 26. Qd2 {[%clk 0:02:03]}  f4 {[%clk 0:01:15]} 27. Ng5 {[%clk 0:01:51]}  Qd8 {[%clk 0:01:03]} 28. Rh8+ {[%clk 0:01:46]}  Kg7 {[%clk 0:01:00]} 29. Rh7+ {[%clk 0:01:36]}  Kg8 {[%clk 0:01:00]} 30. Nxf7 {[%clk 0:01:33]}  f3+ {[%clk 0:00:41]} 31. Kf1 {[%clk 0:01:23]}  Qa5 {[%clk 0:00:18]} 32. Qd3 {[%clk 0:01:00]}  Kxh7 {[%clk 0:00:16]} 33. Nxd6 {[%clk 0:00:53]}  Re6 {[%clk 0:00:15]} 34. Ne4 {[%clk 0:00:48]}  Qa6 {[%clk 0:00:14]} 35. Qxa6 {[%clk 0:00:47]}  bxa6 {[%clk 0:00:13]} 36. Ng5+ {[%clk 0:00:48]}  Kg7 {[%clk 0:00:13]} 37. Nxe6+ {[%clk 0:00:49]}  Kf6 {[%clk 0:00:13]} 38. Nc5 {[%clk 0:00:49]}  Ke7 {[%clk 0:00:13]} 39. Ke1 {[%clk 0:00:49]}  Kd6 {[%clk 0:00:13]} 40. Kd2 {[%clk 0:00:49]}  Kd5 {[%clk 0:00:14]} 41. b3 {[%clk 0:00:50]}  g5 {[%clk 0:00:14]} 42. Kd3 {[%clk 0:00:50]}  g4 {[%clk 0:00:15]} 43. c4+ {[%clk 0:00:50]}  Kd6 {[%clk 0:00:14]} 44. Ke4 {[%clk 0:00:51]}  Ke7 {[%clk 0:00:15]} 45. Kf4 {[%clk 0:00:51]}  Kd6 {[%clk 0:00:16]} 46. Kxg4 {[%clk 0:00:52]}  a5 {[%clk 0:00:17]} 47. Kxf3 {[%clk 0:00:52]}  a4 {[%clk 0:00:17]} 48. Nxa4 {[%clk 0:00:51]}  a5 {[%clk 0:00:18]} 49. Nc5 {[%clk 0:00:52]}  a4 {[%clk 0:00:17]} 50. Nxa4 {[%clk 0:00:52]}  c5 {[%clk 0:00:17]} 51. Nxc5 {[%clk 0:00:52]}  Kc6 {[%clk 0:00:18]} 52. h4 {[%clk 0:00:51]}  Kc7 {[%clk 0:00:19]} 53. h5 {[%clk 0:00:52]}  Kc6 {[%clk 0:00:19]} 54. h6 {[%clk 0:00:52]}  Kb6 {[%clk 0:00:20]} 55. h7 {[%clk 0:00:53]}  Kc7 {[%clk 0:00:20]} 56. h8=Q {[%clk 0:00:53]}  Kc6 {[%clk 0:00:20]} 57. Qc8+ {[%clk 0:00:53]}  Kb6 {[%clk 0:00:20]} 58. Qb7+ {[%clk 0:00:53]}  Ka5 {[%clk 0:00:19]} 59. b4# {[%clk 0:00:53]} 1-0


[Site "https://www.chess.com"]

[Event "Titled Tuesday Blitz October 31 Late 2023"]
[White "Vila Dupla, Aurelio"]
[Black "Fernandez Hernandez, Gerardo"]
[WhiteFideId "2203383"]
[BlackFideId "2207400"]
[WhiteElo "2211"]
[BlackElo "2138"]
[Result "1-0"]
[Round "8"]
[TimeControl "180+1"]
[Date "2023.10.31"]
[WhiteClock "0:00:01"]
[BlackClock "0:00:00"]
[Board "132"]

1. Nf3 {[%clk 0:03:00]}  Nf6 {[%clk 0:02:59]} 2. d4 {[%clk 0:03:00]}  g6 {[%clk 0:02:59]} 3. g3 {[%clk 0:02:59]}  Bg7 {[%clk 0:02:58]} 4. Bg2 {[%clk 0:02:59]}  O-O {[%clk 0:02:58]} 5. O-O {[%clk 0:02:59]}  d6 {[%clk 0:02:59]} 6. c4 {[%clk 0:02:59]}  c6 {[%clk 0:02:58]} 7. Nc3 {[%clk 0:02:59]}  Qa5 {[%clk 0:02:58]} 8. e4 {[%clk 0:02:57]}  e5 {[%clk 0:02:46]} 9. dxe5 {[%clk 0:02:50]}  dxe5 {[%clk 0:02:46]} 10. Qc2 {[%clk 0:02:47]}  Bg4 {[%clk 0:02:39]} 11. Ne1 {[%clk 0:02:34]}  Nbd7 {[%clk 0:02:33]} 12. h3 {[%clk 0:02:34]}  Be6 {[%clk 0:02:33]} 13. b3 {[%clk 0:02:32]}  Qc7 {[%clk 0:01:55]} 14. Be3 {[%clk 0:02:28]}  Nh5 {[%clk 0:01:46]} 15. Nf3 {[%clk 0:02:24]}  h6 {[%clk 0:01:39]} 16. Qd2 {[%clk 0:02:19]}  Kh7 {[%clk 0:01:38]} 17. Rac1 {[%clk 0:02:07]}  f5 {[%clk 0:01:35]} 18. exf5 {[%clk 0:02:07]}  gxf5 {[%clk 0:01:33]} 19. Qc2 {[%clk 0:01:55]}  e4 {[%clk 0:01:26]} 20. Nd4 {[%clk 0:01:47]}  Rae8 {[%clk 0:01:06]} 21. Qe2 {[%clk 0:01:22]}  Ndf6 {[%clk 0:00:57]} 22. Nxe6 {[%clk 0:01:06]}  Rxe6 {[%clk 0:00:56]} 23. g4 {[%clk 0:00:57]}  f4 {[%clk 0:00:47]} 24. gxh5 {[%clk 0:00:52]}  fxe3 {[%clk 0:00:44]} 25. Qxe3 {[%clk 0:00:49]}  Nxh5 {[%clk 0:00:31]} 26. Bxe4+ {[%clk 0:00:42]}  Kh8 {[%clk 0:00:31]} 27. f4 {[%clk 0:00:35]}  Rxf4 {[%clk 0:00:20]} 28. Rxf4 {[%clk 0:00:34]}  Nxf4 {[%clk 0:00:17]} 29. Rf1 {[%clk 0:00:28]}  Ng6 {[%clk 0:00:03]} 30. Qd3 {[%clk 0:00:19]}  Nf4 {[%clk 0:00:01]} 31. Qf3 {[%clk 0:00:08]}  Qe5 {[%clk 0:00:01]} 32. Qxf4 {[%clk 0:00:02]}  Qxc3 {[%clk 0:00:00]} 33. Qf2 {[%clk 0:00:01]} 1-0


[Site "https://www.chess.com"]

[Event "Titled Tuesday Blitz October 31 Late 2023"]
[White "Martinez Alcantara, Jose Eduardo"]
[Black "Bok, Benjamin"]
[WhiteFideId "3805662"]
[BlackFideId "1017063"]
[WhiteElo "3123"]
[BlackElo "2972"]
[Result "0-1"]
[Round "9"]
[TimeControl "180+1"]
[Date "2023.10.31"]
[WhiteClock "0:00:02"]
[BlackClock "0:00:06"]
[Board "2"]

1. e4 {[%clk 0:03:00]}  c5 {[%clk 0:03:00]} 2. Nf3 {[%clk 0:03:00]}  d6 {[%clk 0:03:00]} 3. c3 {[%clk 0:03:01]}  Nf6 {[%clk 0:03:01]} 4. h3 {[%clk 0:03:01]}  Nc6 {[%clk 0:03:00]} 5. Bd3 {[%clk 0:03:02]}  g6 {[%clk 0:03:01]} 6. Bc2 {[%clk 0:03:02]}  e5 {[%clk 0:03:00]} 7. d3 {[%clk 0:03:02]}  Bg7 {[%clk 0:03:00]} 8. Bg5 {[%clk 0:03:03]}  O-O {[%clk 0:02:59]} 9. Nbd2 {[%clk 0:03:03]}  h6 {[%clk 0:02:59]} 10. Bxf6 {[%clk 0:03:04]}  Bxf6 {[%clk 0:02:57]} 11. Bb3 {[%clk 0:03:04]}  Kg7 {[%clk 0:02:28]} 12. Nf1 {[%clk 0:03:03]}  Rb8 {[%clk 0:02:22]} 13. a4 {[%clk 0:03:01]}  a6 {[%clk 0:02:16]} 14. Bd5 {[%clk 0:03:02]}  Ne7 {[%clk 0:02:15]} 15. Ne3 {[%clk 0:03:02]}  Bg5 {[%clk 0:02:13]} 16. Nxg5 {[%clk 0:02:48]}  Nxd5 {[%clk 0:02:03]} 17. exd5 {[%clk 0:02:15]}  hxg5 {[%clk 0:01:53]} 18. a5 {[%clk 0:02:14]}  Rh8 {[%clk 0:01:48]} 19. Qe2 {[%clk 0:02:01]}  b5 {[%clk 0:01:24]} 20. axb6 {[%clk 0:01:52]}  Rxb6 {[%clk 0:01:23]} 21. Nc4 {[%clk 0:01:41]}  Rb8 {[%clk 0:01:21]} 22. f3 {[%clk 0:01:42]}  Bb7 {[%clk 0:01:13]} 23. O-O {[%clk 0:01:30]}  Bxd5 {[%clk 0:01:06]} 24. Rxa6 {[%clk 0:01:29]}  Bxc4 {[%clk 0:01:06]} 25. dxc4 {[%clk 0:01:30]}  Rb6 {[%clk 0:01:06]} 26. Raa1 {[%clk 0:01:23]}  Qe7 {[%clk 0:01:00]} 27. Rad1 {[%clk 0:01:23]}  Rhb8 {[%clk 0:00:59]} 28. Rd2 {[%clk 0:01:24]}  Qb7 {[%clk 0:00:58]} 29. Rf2 {[%clk 0:01:23]}  Qc6 {[%clk 0:00:47]} 30. Qe3 {[%clk 0:01:19]}  Qc8 {[%clk 0:00:43]} 31. Qxg5 {[%clk 0:01:14]}  Qe6 {[%clk 0:00:42]} 32. Qh4 {[%clk 0:01:03]}  Qf5 {[%clk 0:00:31]} 33. Kh2 {[%clk 0:00:51]}  g5 {[%clk 0:00:20]} 34. Qe4 {[%clk 0:00:50]}  Qxe4 {[%clk 0:00:19]} 35. fxe4 {[%clk 0:00:51]}  f6 {[%clk 0:00:20]} 36. g3 {[%clk 0:00:47]}  Kf7 {[%clk 0:00:18]} 37. h4 {[%clk 0:00:44]}  gxh4 {[%clk 0:00:17]} 38. gxh4 {[%clk 0:00:45]}  Ke6 {[%clk 0:00:18]} 39. Kh3 {[%clk 0:00:45]}  R6b7 {[%clk 0:00:18]} 40. Rg2 {[%clk 0:00:43]}  Rh8 {[%clk 0:00:17]} 41. Rg4 {[%clk 0:00:37]}  Rhb8 {[%clk 0:00:14]} 42. Rgg2 {[%clk 0:00:36]}  Rh8 {[%clk 0:00:13]} 43. Rdf2 {[%clk 0:00:37]}  Rbh7 {[%clk 0:00:13]} 44. Rg4 {[%clk 0:00:38]}  Rh6 {[%clk 0:00:13]} 45. Kg3 {[%clk 0:00:35]}  Ra8 {[%clk 0:00:12]} 46. Rh2 {[%clk 0:00:24]}  Ra1 {[%clk 0:00:10]} 47. Kf3 {[%clk 0:00:25]}  Ra4 {[%clk 0:00:07]} 48. Rc2 {[%clk 0:00:16]}  Ra1 {[%clk 0:00:06]} 49. Rh2 {[%clk 0:00:17]}  Ra4 {[%clk 0:00:06]} 50. h5 {[%clk 0:00:17]}  Kf7 {[%clk 0:00:04]} 51. Rhg2 {[%clk 0:00:03]}  Rxh5 {[%clk 0:00:03]} 52. Rg8 {[%clk 0:00:04]}  Rh3+ {[%clk 0:00:02]} 53. Ke2 {[%clk 0:00:04]}  Rh7 {[%clk 0:00:02]} 54. Rd8 {[%clk 0:00:03]}  Ke7 {[%clk 0:00:02]} 55. Rb8 {[%clk 0:00:02]}  Ke6 {[%clk 0:00:02]} 56. Kd3 {[%clk 0:00:02]}  Ra1 {[%clk 0:00:02]} 57. Kc2 {[%clk 0:00:03]}  Re1 {[%clk 0:00:02]} 58. Re8+ {[%clk 0:00:02]}  Kd7 {[%clk 0:00:02]} 59. Rf8 {[%clk 0:00:03]}  Ke7 {[%clk 0:00:03]} 60. Ra8 {[%clk 0:00:04]}  Ke6 {[%clk 0:00:03]} 61. Rgg8 {[%clk 0:00:04]}  Rxe4 {[%clk 0:00:02]} 62. Rge8+ {[%clk 0:00:04]}  Kf5 {[%clk 0:00:03]} 63. Rad8 {[%clk 0:00:03]}  Rh2+ {[%clk 0:00:03]} 64. Kb3 {[%clk 0:00:03]}  Ree2 {[%clk 0:00:04]} 65. Rxd6 {[%clk 0:00:03]}  Rxb2+ {[%clk 0:00:04]} 66. Ka4 {[%clk 0:00:03]}  Rb1 {[%clk 0:00:05]} 67. Ka3 {[%clk 0:00:03]}  Ra1+ {[%clk 0:00:05]} 68. Kb3 {[%clk 0:00:03]}  Rb1+ {[%clk 0:00:05]} 69. Ka3 {[%clk 0:00:04]}  Rhb2 {[%clk 0:00:05]} 70. Rf8 {[%clk 0:00:03]}  Ke4 {[%clk 0:00:06]} 71. Rfxf6 {[%clk 0:00:02]}  Rb7 {[%clk 0:00:06]} 72. Ra6 {[%clk 0:00:02]}  Ra1# {[%clk 0:00:06]} 0-1


[Site "https://www.chess.com"]

[Event "Titled Tuesday Blitz October 31 Late 2023"]
[White "Andreikin, Dmitry"]
[Black "Daneshvar, Bardiya"]
[WhiteFideId "4158814"]
[BlackFideId "12576468"]
[WhiteElo "3113"]
[BlackElo "2966"]
[Result "1/2-1/2"]
[Round "9"]
[TimeControl "180+1"]
[Date "2023.10.31"]
[WhiteClock "0:00:03"]
[BlackClock "0:00:04"]
[Board "3"]

1. d4 {[%clk 0:03:00]}  Nf6 {[%clk 0:03:00]} 2. c4 {[%clk 0:03:00]}  e6 {[%clk 0:03:00]} 3. Nf3 {[%clk 0:03:00]}  d5 {[%clk 0:02:59]} 4. Nc3 {[%clk 0:02:59]}  Be7 {[%clk 0:02:59]} 5. Bf4 {[%clk 0:02:58]}  O-O {[%clk 0:02:59]} 6. e3 {[%clk 0:02:58]}  Nbd7 {[%clk 0:03:00]} 7. c5 {[%clk 0:02:57]}  Nh5 {[%clk 0:02:59]} 8. Bd3 {[%clk 0:02:53]}  Nxf4 {[%clk 0:02:59]} 9. exf4 {[%clk 0:02:54]}  c6 {[%clk 0:03:00]} 10. O-O {[%clk 0:02:52]}  b6 {[%clk 0:03:00]} 11. b4 {[%clk 0:02:52]}  a5 {[%clk 0:03:01]} 12. a3 {[%clk 0:02:52]}  Ba6 {[%clk 0:03:02]} 13. g3 {[%clk 0:02:46]}  Bf6 {[%clk 0:03:01]} 14. Qe2 {[%clk 0:02:24]}  Bxd3 {[%clk 0:02:55]} 15. Qxd3 {[%clk 0:02:24]}  Ra7 {[%clk 0:02:55]} 16. Rab1 {[%clk 0:02:16]}  axb4 {[%clk 0:02:55]} 17. axb4 {[%clk 0:02:17]}  Ra3 {[%clk 0:02:48]} 18. Rfc1 {[%clk 0:02:12]}  Qa8 {[%clk 0:02:44]} 19. Ne5 {[%clk 0:02:02]}  Bxe5 {[%clk 0:02:43]} 20. fxe5 {[%clk 0:02:03]}  Rb8 {[%clk 0:02:34]} 21. Qc2 {[%clk 0:01:58]}  bxc5 {[%clk 0:02:22]} 22. bxc5 {[%clk 0:01:59]}  Rxb1 {[%clk 0:02:22]} 23. Rxb1 {[%clk 0:01:57]}  Qa5 {[%clk 0:02:16]} 24. Rb3 {[%clk 0:01:50]}  f6 {[%clk 0:02:08]} 25. Rxa3 {[%clk 0:01:32]}  Qxa3 {[%clk 0:02:08]} 26. exf6 {[%clk 0:01:33]}  Nxf6 {[%clk 0:02:06]} 27. Kg2 {[%clk 0:01:30]}  Nd7 {[%clk 0:01:48]} 28. Ne2 {[%clk 0:01:27]}  Qb4 {[%clk 0:01:39]} 29. Qd3 {[%clk 0:01:21]}  g6 {[%clk 0:01:35]} 30. Qa6 {[%clk 0:01:05]}  Qe1 {[%clk 0:01:06]} 31. Ng1 {[%clk 0:00:50]}  Qe4+ {[%clk 0:00:54]} 32. f3 {[%clk 0:00:32]}  Qxd4 {[%clk 0:00:47]} 33. Qc8+ {[%clk 0:00:32]}  Nf8 {[%clk 0:00:47]} 34. Qxc6 {[%clk 0:00:32]}  Qb2+ {[%clk 0:00:43]} 35. Kh1 {[%clk 0:00:31]}  Qb8 {[%clk 0:00:35]} 36. Ne2 {[%clk 0:00:26]}  Qb1+ {[%clk 0:00:25]} 37. Ng1 {[%clk 0:00:26]}  d4 {[%clk 0:00:17]} 38. Qd6 {[%clk 0:00:23]}  d3 {[%clk 0:00:17]} 39. c6 {[%clk 0:00:23]}  Qc2 {[%clk 0:00:18]} 40. c7 {[%clk 0:00:23]}  d2 {[%clk 0:00:18]} 41. c8=Q {[%clk 0:00:19]}  Qxc8 {[%clk 0:00:18]} 42. Qxd2 {[%clk 0:00:20]}  Qc6 {[%clk 0:00:16]} 43. Qe3 {[%clk 0:00:19]}  Nd7 {[%clk 0:00:14]} 44. Ne2 {[%clk 0:00:19]}  e5 {[%clk 0:00:14]} 45. Nc3 {[%clk 0:00:17]}  Qc4 {[%clk 0:00:12]} 46. Kg2 {[%clk 0:00:16]}  Qd4 {[%clk 0:00:12]} 47. Kf2 {[%clk 0:00:11]}  Nc5 {[%clk 0:00:08]} 48. Qxd4 {[%clk 0:00:11]}  exd4 {[%clk 0:00:09]} 49. Nb5 {[%clk 0:00:11]}  d3 {[%clk 0:00:08]} 50. Ke3 {[%clk 0:00:11]}  Kf7 {[%clk 0:00:07]} 51. Nd6+ {[%clk 0:00:11]}  Ke6 {[%clk 0:00:08]} 52. Ne4 {[%clk 0:00:12]}  Nd7 {[%clk 0:00:05]} 53. Ng5+ {[%clk 0:00:11]}  Kf5 {[%clk 0:00:04]} 54. Nxh7 {[%clk 0:00:09]}  g5 {[%clk 0:00:03]} 55. h4 {[%clk 0:00:03]}  gxh4 {[%clk 0:00:03]} 56. gxh4 {[%clk 0:00:04]}  Ne5 {[%clk 0:00:03]} 57. Ng5 {[%clk 0:00:04]}  Ng6 {[%clk 0:00:03]} 58. Ne4 {[%clk 0:00:03]}  Nxh4 {[%clk 0:00:03]} 59. Ng3+ {[%clk 0:00:03]}  Ke6 {[%clk 0:00:04]} 60. Kxd3 {[%clk 0:00:03]}  Nxf3 {[%clk 0:00:04]} 1/2-1/2


[Site "https://www.chess.com"]

[Event "Titled Tuesday Blitz October 31 Late 2023"]
[White "Le, Quang Liem"]
[Black "Sivakumar, Shaaketh"]
[WhiteFideId "12401137"]
[BlackFideId "30940176"]
[WhiteElo "3039"]
[BlackElo "2640"]
[Result "1-0"]
[Round "9"]
[TimeControl "180+1"]
[Date "2023.10.31"]
[WhiteClock "0:01:52"]
[BlackClock "0:01:43"]
[Board "6"]

1. Nf3 {[%clk 0:03:00]}  Nf6 {[%clk 0:02:57]} 2. c4 {[%clk 0:03:01]}  b6 {[%clk 0:02:57]} 3. g3 {[%clk 0:03:00]}  Bb7 {[%clk 0:02:58]} 4. Bg2 {[%clk 0:03:01]}  g6 {[%clk 0:02:58]} 5. d4 {[%clk 0:02:59]}  Bg7 {[%clk 0:02:59]} 6. d5 {[%clk 0:03:00]}  O-O {[%clk 0:02:58]} 7. Nc3 {[%clk 0:03:00]}  d6 {[%clk 0:02:57]} 8. O-O {[%clk 0:03:00]}  c5 {[%clk 0:02:56]} 9. e4 {[%clk 0:02:59]}  Nbd7 {[%clk 0:02:56]} 10. h3 {[%clk 0:02:59]}  a6 {[%clk 0:02:53]} 11. a4 {[%clk 0:02:58]}  Ne8 {[%clk 0:02:53]} 12. Re1 {[%clk 0:02:54]}  Nc7 {[%clk 0:02:53]} 13. Bf4 {[%clk 0:02:55]}  h6 {[%clk 0:02:53]} 14. e5 {[%clk 0:02:49]}  dxe5 {[%clk 0:02:40]} 15. Nxe5 {[%clk 0:02:50]}  Nxe5 {[%clk 0:02:34]} 16. Bxe5 {[%clk 0:02:51]}  Bxe5 {[%clk 0:02:33]} 17. Rxe5 {[%clk 0:02:52]}  e6 {[%clk 0:02:31]} 18. dxe6 {[%clk 0:02:44]}  Bxg2 {[%clk 0:02:20]} 19. e7 {[%clk 0:02:39]}  Qxd1+ {[%clk 0:02:18]} 20. Rxd1 {[%clk 0:02:39]}  Rfe8 {[%clk 0:02:15]} 21. Kxg2 {[%clk 0:02:39]}  Ne6 {[%clk 0:02:08]} 22. Rd7 {[%clk 0:02:30]}  Kg7 {[%clk 0:02:05]} 23. Nd5 {[%clk 0:02:30]}  Rab8 {[%clk 0:02:03]} 24. f4 {[%clk 0:02:06]}  b5 {[%clk 0:02:02]} 25. cxb5 {[%clk 0:02:06]}  axb5 {[%clk 0:02:01]} 26. a5 {[%clk 0:02:07]}  Ra8 {[%clk 0:02:00]} 27. Rxe6 {[%clk 0:01:52]}  fxe6 {[%clk 0:01:55]} 28. Nc7 {[%clk 0:01:52]}  Rac8 {[%clk 0:01:49]} 29. Nxe8+ {[%clk 0:01:52]}  Rxe8 {[%clk 0:01:49]} 30. a6 {[%clk 0:01:53]}  c4 {[%clk 0:01:46]} 31. a7 {[%clk 0:01:52]}  b4 {[%clk 0:01:43]} 32. Rd8 {[%clk 0:01:52]} 1-0


[Site "https://www.chess.com"]

[Event "Titled Tuesday Blitz October 31 Late 2023"]
[White "Elsa167"]
[Black "Grigoriants, Sergey"]
[BlackFideId "4130804"]
[WhiteElo "2959"]
[BlackElo "2901"]
[Result "1-0"]
[Round "9"]
[TimeControl "180+1"]
[Date "2023.10.31"]
[WhiteClock "0:00:05"]
[BlackClock "0:00:06"]
[Board "8"]

1. d4 {[%clk 0:03:00]}  d5 {[%clk 0:02:49]} 2. c4 {[%clk 0:03:01]}  c6 {[%clk 0:02:49]} 3. cxd5 {[%clk 0:03:01]}  cxd5 {[%clk 0:02:47]} 4. Bf4 {[%clk 0:03:02]}  Nc6 {[%clk 0:02:46]} 5. e3 {[%clk 0:03:02]}  Nf6 {[%clk 0:02:46]} 6. Nc3 {[%clk 0:03:02]}  Bg4 {[%clk 0:02:46]} 7. Qb3 {[%clk 0:03:02]}  Na5 {[%clk 0:02:46]} 8. Qa4+ {[%clk 0:03:03]}  Bd7 {[%clk 0:02:46]} 9. Qc2 {[%clk 0:03:03]}  e6 {[%clk 0:02:46]} 10. Bd3 {[%clk 0:03:03]}  Rc8 {[%clk 0:02:46]} 11. Nf3 {[%clk 0:03:03]}  Be7 {[%clk 0:02:45]} 12. h3 {[%clk 0:03:01]}  O-O {[%clk 0:02:43]} 13. O-O {[%clk 0:02:59]}  b5 {[%clk 0:02:42]} 14. a3 {[%clk 0:02:59]}  a6 {[%clk 0:02:41]} 15. Ne5 {[%clk 0:02:57]}  Nc4 {[%clk 0:02:41]} 16. Rfc1 {[%clk 0:02:39]}  h6 {[%clk 0:02:39]} 17. Qe2 {[%clk 0:02:38]}  Qa5 {[%clk 0:02:26]} 18. a4 {[%clk 0:02:03]}  Qb6 {[%clk 0:01:45]} 19. Nxd7 {[%clk 0:01:58]}  Nxd7 {[%clk 0:01:45]} 20. axb5 {[%clk 0:01:59]}  axb5 {[%clk 0:01:45]} 21. b3 {[%clk 0:01:57]}  Na5 {[%clk 0:01:32]} 22. Qa2 {[%clk 0:01:22]}  Nc6 {[%clk 0:00:54]} 23. Bxb5 {[%clk 0:01:16]}  Nf6 {[%clk 0:00:49]} 24. Qe2 {[%clk 0:01:10]}  Nb4 {[%clk 0:00:47]} 25. Na4 {[%clk 0:01:07]}  Qb7 {[%clk 0:00:31]} 26. Nc5 {[%clk 0:01:03]}  Qb6 {[%clk 0:00:31]} 27. Na4 {[%clk 0:00:44]}  Qb7 {[%clk 0:00:31]} 28. Bd3 {[%clk 0:00:27]}  Ne4 {[%clk 0:00:29]} 29. Bxe4 {[%clk 0:00:25]}  dxe4 {[%clk 0:00:30]} 30. Nc5 {[%clk 0:00:25]}  Qd5 {[%clk 0:00:24]} 31. Qc4 {[%clk 0:00:20]}  Bxc5 {[%clk 0:00:07]} 32. dxc5 {[%clk 0:00:16]}  Nd3 {[%clk 0:00:07]} 33. Bd6 {[%clk 0:00:09]}  Nxc1 {[%clk 0:00:05]} 34. Rxc1 {[%clk 0:00:08]}  Rfd8 {[%clk 0:00:04]} 35. Qxd5 {[%clk 0:00:03]}  exd5 {[%clk 0:00:05]} 36. Rd1 {[%clk 0:00:04]}  Rd7 {[%clk 0:00:01]} 37. b4 {[%clk 0:00:04]}  Rb7 {[%clk 0:00:01]} 38. Rd4 {[%clk 0:00:03]}  f6 {[%clk 0:00:02]} 39. f3 {[%clk 0:00:02]}  Kf7 {[%clk 0:00:02]} 40. fxe4 {[%clk 0:00:02]}  dxe4 {[%clk 0:00:03]} 41. Rxe4 {[%clk 0:00:03]}  Ra8 {[%clk 0:00:04]} 42. c6 {[%clk 0:00:02]}  Rb6 {[%clk 0:00:04]} 43. Rc4 {[%clk 0:00:03]}  Rc8 {[%clk 0:00:03]} 44. b5 {[%clk 0:00:02]}  Rxb5 {[%clk 0:00:03]} 45. c7 {[%clk 0:00:02]}  Rd5 {[%clk 0:00:04]} 46. Bg3 {[%clk 0:00:02]}  Ke6 {[%clk 0:00:04]} 47. Kh2 {[%clk 0:00:03]}  Rd7 {[%clk 0:00:04]} 48. Re4+ {[%clk 0:00:03]}  Kf5 {[%clk 0:00:05]} 49. Rc4 {[%clk 0:00:04]}  Ke6 {[%clk 0:00:05]} 50. Rc5 {[%clk 0:00:04]}  Rd5 {[%clk 0:00:05]} 51. Rc6+ {[%clk 0:00:05]}  Kd7 {[%clk 0:00:05]} 52. Rc4 {[%clk 0:00:05]}  Rd3 {[%clk 0:00:05]} 53. e4 {[%clk 0:00:02]}  Rd2 {[%clk 0:00:06]} 54. e5 {[%clk 0:00:02]}  fxe5 {[%clk 0:00:05]} 55. Bxe5 {[%clk 0:00:03]}  g6 {[%clk 0:00:06]} 56. Bf4 {[%clk 0:00:03]}  g5 {[%clk 0:00:06]} 57. Bxd2 {[%clk 0:00:04]}  Rxc7 {[%clk 0:00:06]} 58. Rxc7+ {[%clk 0:00:04]}  Kxc7 {[%clk 0:00:06]} 59. Kg3 {[%clk 0:00:05]} 1-0


[Site "https://www.chess.com"]